fUST/lending_fUST_20240705
["ID","MTS","AMOUNT","RATE_DAILY","PERIOD"]
[331279283,1720171851018,-500.0,0.00056438,120]
[331279284,1720171851027,-510.68,0.00056438,120]
[331279285,1720171851037,-206.369197,0.00056438,120]
[331279286,1720171851052,-500.0,0.00056438,120]
[331279287,1720171851061,-500.0,0.00056438,120]
[331279288,1720171851070,-206.369197,0.00056438,120]
[331279289,1720171851080,-500.0,0.00056438,120]
[331279290,1720171851090,-151.0,0.00056438,120]
[331279291,1720171851098,-500.0,0.00056438,120]
[331279292,1720171851107,-500.0,0.00056438,120]
[331279293,1720171851117,-500.0,0.00056438,120]
[331279294,1720171851127,-500.0,0.00056438,120]
[331279295,1720171851137,-1235.21,0.00056438,120]
[331279296,1720171851149,-500.0,0.00056438,120]
[331279297,1720171851158,-500.0,0.00056438,120]
[331279298,1720171851171,-500.0,0.00056438,120]
[331279299,1720171851180,-500.0,0.00056438,120]
[331279300,1720171851189,-500.0,0.00056438,120]
[331279301,1720171851199,-500.0,0.00056438,120]
[331279302,1720171851208,-500.0,0.00056438,120]
[331279303,1720171851218,-559.10364024,0.00056438,120]
[331279304,1720171851227,-500.0,0.00056438,120]
[331279305,1720171851238,-500.0,0.00056438,22]
[331279306,1720171851247,-1561.76,0.00056438,120]
[331279307,1720171851258,-4322.73,0.00056438,120]
[331279308,1720171851267,-292.90283825,0.00056438,120]
[331279309,1720171851276,-500.0,0.00056438,120]
[331279310,1720171851286,-500.0,0.00056438,120]
[331279311,1720171851295,-500.0,0.00056438,120]
[331279312,1720171851304,-500.0,0.00056438,120]
[331279313,1720171851314,-500.0,0.00056438,120]
[331279314,1720171851323,-500.0,0.00056438,120]
[331279315,1720171851333,-500.0,0.00056438,120]
[331279316,1720171851342,-229.56642926,0.00056438,120]
[331279317,1720171851352,-500.0,0.00056438,120]
[331279318,1720171851362,-859.92,0.00056438,120]
[331279319,1720171851371,-500.0,0.00056438,120]
[331279320,1720171851381,-500.0,0.00056438,120]
[331279321,1720171851391,-500.0,0.00056438,120]
[331279322,1720171851400,-500.0,0.00056438,120]
[331279323,1720171851412,-500.0,0.00056438,120]
[331279324,1720171851421,-734.04,0.00056438,120]
[331279325,1720171851431,-500.0,0.00056438,120]
[331279326,1720171851440,-2212.73,0.00056438,120]
[331279327,1720171851450,-500.0,0.00056438,120]
[331279328,1720171851459,-1417.23,0.00056438,120]
[331279329,1720171851468,-500.0,0.00056438,120]
[331279330,1720171851478,-500.0,0.00056438,120]
[331279331,1720171851489,-587.76299948,0.00056438,120]
[331279332,1720171851499,-1374.18,0.00056438,120]
[331279333,1720171851508,-500.0,0.00056438,120]
[331279334,1720171851518,-1800.5,0.00056438,120]
[331279335,1720171851528,-1173.6,0.00056438,120]
[331279336,1720171851538,-500.0,0.00056438,120]
[331279337,1720171851547,-500.0,0.00056438,120]
[331279338,1720171851557,-500.0,0.00056438,2]
[331279339,1720171851566,-500.0,0.00056438,120]
[331279340,1720171851576,-15719.14,0.00056438,120]
[331279341,1720171851586,-23934.48,0.00056438,120]
[331279342,1720171851595,-327.12456546,0.00056438,120]
[331279343,1720171851605,-9658.67,0.00056438,120]
[331279344,1720171851614,-1733.15,0.00056438,21]
[331279345,1720171851624,-521.89,0.00056438,120]
[331279346,1720171851634,-3162.35,0.00056438,120]
[331279347,1720171851647,-558.65,0.00056438,120]
[331279348,1720171851657,-500.0,0.00056438,120]
[331279349,1720171851670,-500.0,0.00056438,120]
[331279350,1720171851680,-500.0,0.00056438,120]
[331279351,1720171851690,-500.0,0.00056438,120]
[331279352,1720171851703,-689.46,0.00056438,120]
[331279353,1720171851713,-1147.1,0.00056438,120]
[331279354,1720171851723,-500.0,0.00056438,120]
[331279355,1720171851734,-5919.32,0.00056438,120]
[331279356,1720171851743,-11567.19,0.00056438,120]
[331279357,1720171851753,-926.44,0.00056438,120]
[331279358,1720171851763,-500.0,0.00056438,120]
[331279359,1720171851774,-151.0,0.00056575,120]
[331279360,1720171851784,-293.3096853,0.00056712,2]
[331279361,1720171851793,-293.3096853,0.00056712,2]
[331279362,1720171851805,-293.3096853,0.00056712,2]
[331279363,1720171851814,-293.1949976,0.00056712,2]
[331279364,1720171851823,-293.3096853,0.00056712,2]
[331279365,1720171851833,-293.3096853,0.00056712,2]
[331279366,1720171851842,-293.3096853,0.00056712,2]
[331279367,1720171851852,-293.3096853,0.00056712,2]
[331279368,1720171851862,-11734.37857733,0.00056786,120]
[331279369,1720171851872,-500.0,0.00056986,120]
[331279370,1720171851883,-500.0,0.00056986,120]
[331279371,1720171851892,-500.0,0.00056986,14]
[331279372,1720171851904,-500.0,0.00056986,120]
[331279373,1720171851916,-500.0,0.00056986,120]
[331279374,1720171851926,-500.0,0.00056986,120]
[331279375,1720171851936,-500.0,0.00056986,120]
[331279376,1720171851946,-500.0,0.00056986,120]
[331279377,1720171851954,-500.0,0.00056986,120]
[331279378,1720171851964,-200.0,0.00056986,7]
[331279379,1720171851973,-517.20493663,0.00056986,120]
[331279380,1720171851983,-500.0,0.00056986,120]
[331279381,1720171851993,-500.0,0.00056986,120]
[331279382,1720171852002,-500.0,0.00056986,120]
[331279383,1720171852011,-500.0,0.00056986,120]
[331279384,1720171852020,-500.0,0.00056986,120]
[331279385,1720171852029,-500.0,0.00056986,120]
[331279386,1720171852041,-500.0,0.00056986,120]
[331279387,1720171852051,-500.0,0.00056986,120]
[331279388,1720171852061,-500.0,0.00056986,120]
[331279389,1720171852071,-882.16,0.00056986,120]
[331279390,1720171852081,-500.0,0.00056986,120]
[331279391,1720171852095,-500.0,0.00056986,120]
[331279392,1720171852108,-500.0,0.00056986,120]
[331279393,1720171852118,-500.0,0.00056986,120]
[331279394,1720171852129,-500.0,0.00056986,120]
[331279395,1720171852140,-500.0,0.00056986,120]
[331279396,1720171852149,-217.625404,0.00056986,120]
[331279397,1720171852158,-151.0,0.00056986,120]
[331279398,1720171852169,-500.0,0.00056986,120]
[331279399,1720171852179,-500.0,0.00056986,120]
[331279400,1720171852188,-1859.97,0.00056986,120]
[331279401,1720171852198,-685.0,0.00056986,120]
[331279402,1720171852207,-500.0,0.00056986,120]
[331279403,1720171852217,-500.0,0.00056986,120]
[331279404,1720171852227,-500.0,0.00056986,120]
[331279405,1720171852236,-500.0,0.00056986,2]
[331279406,1720171852245,-500.0,0.00056986,120]
[331279407,1720171852254,-997.01,0.00056986,120]
[331279408,1720171852263,-500.0,0.00056986,120]
[331279409,1720171852272,-500.0,0.00056986,120]
[331279410,1720171852281,-500.0,0.00056986,120]
[331279411,1720171852291,-500.0,0.00056986,120]
[331279412,1720171852300,-500.0,0.00056986,120]
[331279413,1720171852310,-500.0,0.00056986,120]
[331279414,1720171852319,-1066.68,0.00056986,120]
[331279415,1720171852328,-693.3,0.00056986,120]
[331279416,1720171852337,-500.0,0.00056986,120]
[331279417,1720171852346,-500.0,0.00056986,120]
[331279418,1720171852355,-1549.3,0.00056986,120]
[331279419,1720171852364,-500.0,0.00056986,120]
[331279420,1720171852373,-269.35415201,0.00056986,120]
[331279421,1720171852382,-1365.1,0.00056986,120]
[331279422,1720171852391,-500.0,0.00056986,120]
[331279423,1720171852402,-500.0,0.00056986,120]
[331279424,1720171852412,-500.0,0.00056986,120]
[331279425,1720171852420,-151.0,0.00056986,120]
[331279426,1720171852430,-500.0,0.00056986,120]
[331279427,1720171852441,-760.23,0.00056986,120]
[331279428,1720171852460,-151.0,0.00056986,120]
[331279429,1720171852469,-500.0,0.00056986,120]
[331279430,1720171852481,-500.0,0.00056986,120]
[331279431,1720171852491,-500.0,0.00056986,120]
[331279432,1720171852500,-531.51,0.00056986,120]
[331279433,1720171852510,-546.77,0.00056986,120]
[331279434,1720171852521,-500.0,0.00056986,120]
[331279435,1720171852531,-299.06717,0.00056986,14]
[331279436,1720171852540,-500.0,0.00056986,120]
[331279437,1720171852550,-500.0,0.00056986,120]
[331279438,1720171852559,-500.0,0.00056986,120]
[331279439,1720171852568,-500.0,0.00056986,120]
[331279440,1720171852578,-712.53,0.00056986,120]
[331279441,1720171852587,-500.0,0.00056986,120]
[331279442,1720171852597,-1246.59,0.00056986,120]
[331279443,1720171852606,-500.0,0.00056986,60]
[331279444,1720171852615,-500.0,0.00056986,120]
[331279445,1720171852625,-932.96,0.00056986,120]
[331279446,1720171852634,-500.0,0.00056986,120]
[331279447,1720171852646,-500.0,0.00056986,120]
[331279448,1720171852657,-500.0,0.00056986,120]
[331279449,1720171852668,-574.99305314,0.00056986,120]
[331279450,1720171852767,-2.54365039,0.00056986,120]
[331279451,1720171852777,-500.0,0.00056986,120]
[331279452,1720171852787,-204.39867689,0.00056986,120]
[331279453,1720171852993,-169.50434797,0.00025,2]
[331279454,1720171853003,-225.53942994,0.00025,2]
[331279455,1720171853012,-615.52282261,0.0003468,4]
[331279456,1720171853022,-264.86125261,0.00035292,2]
[331279457,1720171853031,-371.39375676,0.00037259,4]
[331279458,1720171853044,-3252.46185806,0.00039177,4]
[331279459,1720171853053,-679.52,0.00055342,120]
[331279460,1720171853063,-679.52,0.0005589,120]
[331279461,1720171853072,-679.52,0.00056438,120]
[331279462,1720171853086,-295.60132311,0.00056986,120]
[331279463,1720171853096,-796.36,0.00056986,120]
[331279464,1720171853105,-500.0,0.00056986,120]
[331279465,1720171853118,-940.66,0.00056986,120]
[331279466,1720171853128,-500.0,0.00056986,120]
[331279467,1720171853139,-151.0,0.00056986,120]
[331279468,1720171853149,-500.0,0.00056986,120]
[331279469,1720171853159,-1185.33,0.00056986,120]
[331279470,1720171853172,-868.32,0.00056986,120]
[331279471,1720171853181,-510.68,0.00056986,120]
[331279472,1720171853190,-206.369197,0.00056986,120]
[331279473,1720171853199,-206.369197,0.00056986,120]
[331279474,1720171853211,-500.0,0.00056986,120]
[331279475,1720171853220,-151.0,0.00056986,120]
[331279476,1720171853229,-500.0,0.00056986,120]
[331279477,1720171853239,-500.0,0.00056986,120]
[331279478,1720171853247,-500.0,0.00056986,120]
[331279479,1720171853257,-201.807823,0.00056986,120]
[331279480,1720171853266,-1235.21,0.00056986,120]
[331279481,1720171853275,-500.0,0.00056986,120]
[331279482,1720171853283,-500.0,0.00056986,120]
[331279483,1720171853293,-500.0,0.00056986,120]
[331279484,1720171853302,-500.0,0.00056986,120]
[331279485,1720171853312,-151.0,0.00056986,120]
[331279486,1720171853322,-500.0,0.00056986,120]
[331279487,1720171853332,-500.0,0.00056986,120]
[331279488,1720171853341,-500.0,0.00056986,120]
[331279489,1720171853351,-500.0,0.00056986,22]
[331279490,1720171853360,-151.0,0.00056986,120]
[331279491,1720171853369,-1561.76,0.00056986,120]
[331279492,1720171853379,-4322.73,0.00056986,120]
[331279493,1720171853389,-274.47009,0.00056986,120]
[331279494,1720171853398,-500.0,0.00056986,120]
[331279495,1720171853408,-500.0,0.00056986,120]
[331279496,1720171853420,-500.0,0.00056986,120]
[331279497,1720171853429,-500.0,0.00056986,120]
[331279498,1720171853439,-269.78512674,0.00056986,120]
[331279499,1720171853448,-500.0,0.00056986,120]
[331279500,1720171853458,-500.0,0.00056986,120]
[331279501,1720171853468,-500.0,0.00056986,120]
[331279502,1720171853478,-859.92,0.00056986,120]
[331279503,1720171853487,-500.0,0.00056986,120]
[331279504,1720171853497,-500.0,0.00056986,120]
[331279505,1720171853506,-503.40490929,0.00056986,120]
[331279506,1720171853516,-500.0,0.00056986,120]
[331279507,1720171853647,-500.0,0.00056986,120]
[331279508,1720171853659,-734.04,0.00056986,120]
[331279509,1720171853675,-500.0,0.00056986,120]
[331279510,1720171853685,-2212.73,0.00056986,120]
[331279511,1720171853694,-500.0,0.00056986,120]
[331279512,1720171853706,-1417.23,0.00056986,120]
[331279513,1720171853716,-500.0,0.00056986,120]
[331279514,1720171853725,-500.0,0.00056986,120]
[331279515,1720171853735,-1374.18,0.00056986,120]
[331279516,1720171853744,-500.0,0.00056986,120]
[331279517,1720171853754,-1800.5,0.00056986,120]
[331279518,1720171853764,-1173.6,0.00056986,120]
[331279519,1720171853774,-159.377114,0.00056986,120]
[331279520,1720171853783,-500.0,0.00056986,120]
[331279521,1720171853793,-500.0,0.00056986,120]
[331279522,1720171853802,-159.377114,0.00056986,120]
[331279523,1720171853812,-6938.33163791,0.00056986,120]
[331279524,1720171853832,-8780.80836209,0.00056986,120]
[331279525,1720171853844,-500.0,0.00056986,120]
[331279527,1720171853857,-3119.19163791,0.00056986,120]
[331279528,1720171853882,-328.3832,0.00056986,120]
[331279529,1720171854030,-154.85288975,0.00042398,4]
[331279530,1720171854043,-162.0,0.00049288,120]
[331279531,1720171854053,-500.0,0.00054794,120]
[331279532,1720171854063,-499.16711025,0.00056986,120]
[331279558,1720172193942,150.0,0.00025,120]
[331279569,1720172378283,9997.36312484,0.000125,2]
[331279571,1720172407420,3092.63023148,0.000139,2]
[331279578,1720172590969,492.41385168,9.999e-05,2]
[331279579,1720172609002,656.79971952,9.999e-05,2]
[331279580,1720172635588,511.0939395,9.999e-05,2]
[331279581,1720172637962,492.41385168,0.0001212,2]
[331279582,1720172678360,529.56471706,9.999e-05,2]
[331279585,1720172690314,375.51104864,9.999e-05,2]
[331279586,1720172705756,155.78542155,9.999e-05,2]
[331279587,1720172717537,207.35,0.00010959,2]
[331279594,1720172740716,154.85288975,0.0001212,2]
[331279596,1720172750902,168.86721144,9.999e-05,2]
[331279597,1720172819899,158.02405824,0.0001212,2]
[331279631,1720172944389,513.35970587,9.999e-05,2]
[331279691,1720173038237,-500.0,0.000142,2]
[331279692,1720173038248,-292.53101505,0.000142,2]
[331279693,1720173038258,-1352.712539,0.00014411,2]
[331279694,1720173038268,-300.0,0.00014997,2]
[331279695,1720173038277,-217.0,0.00014997,2]
[331279696,1720173038287,-300.0,0.00014997,2]
[331279697,1720173038296,-2489.45644595,0.00014998,2]
[331279731,1720173040819,-1371.40881746,0.00014998,2]
[331279767,1720173041493,-6715.38142544,0.00014998,2]
[331279769,1720173041506,-3000.0,0.00015,2]
[331279771,1720173041517,-500.0,0.00015247,2]
[331279773,1720173041534,-517.01109085,0.00015247,2]
[331279774,1720173041549,-307.30658607,0.00015247,2]
[331279777,1720173041559,-500.0,0.00015247,2]
[331279779,1720173041569,-500.0,0.00015247,2]
[331279780,1720173041579,-462.065268,0.00015247,2]
[331279781,1720173041590,-596.32552359,0.00015247,2]
[331279782,1720173041600,-500.0,0.00015247,2]
[331279783,1720173041610,-500.0,0.00015247,2]
[331279784,1720173041620,-500.0,0.00015247,2]
[331279785,1720173041630,-468.62625535,0.00015247,2]
[331279786,1720173041640,-500.0,0.00015247,2]
[331279787,1720173041649,-500.0,0.00015247,2]
[331279788,1720173041659,-500.0,0.00015247,2]
[331279789,1720173041668,-500.0,0.00015247,2]
[331279790,1720173041677,-18690.82383645,0.00015251,2]
[331279821,1720173069940,628.74969766,0.0001212,4]
[331279830,1720173169582,10000.0,0.0003062,30]
[331279831,1720173203923,427.95620224,0.0001212,2]
[331279832,1720173312651,24900.0,0.00013959,2]
[331279833,1720173319764,427.95620224,0.0001212,2]
[331279834,1720173322013,10000.0,0.00030616,30]
[331279846,1720173440084,844.03530893,9.999e-05,2]
[331279850,1720173486870,265.27281768,0.0001212,2]
[331279851,1720173486925,4.84102522,0.0001212,2]
[331279852,1720173495008,165.06658562,0.0001212,2]
[331279853,1720173504172,1916.49944035,0.0001212,2]
[331279854,1720173514657,413.32431864,0.0001212,2]
[331279866,1720173546931,427.95620224,0.0001212,2]
[331279883,1720173621330,459.0693945,0.00013788,2]
[331279888,1720173633412,150.5,0.00022932,62]
[331279889,1720173633459,295.0,0.00022932,62]
[331279890,1720173633546,295.0,0.00022922,62]
[331279891,1720173633618,155.9,0.00022922,62]
[331279892,1720173633998,295.0,0.00022912,62]
[331279968,1720173669100,427.95620224,0.0001212,2]
[331279984,1720173724327,171.59,0.00010959,2]
[331279985,1720173730726,294.51676518,0.0001212,2]
[331279986,1720173735086,857.97,0.00010959,2]
[331279987,1720173752026,292.78,0.00022902,62]
[331279988,1720173753390,207.0,0.00022902,62]
[331279989,1720173753987,427.95620224,0.0001212,2]
[331279990,1720173754352,207.0,0.00022892,62]
[331279991,1720173754960,207.0,0.00022882,62]
[331279992,1720173758132,155.11136962,0.0001212,2]
[331279994,1720173768372,427.95620224,0.0001212,2]
[331279999,1720173769968,159.71453487,0.00013283,2]
[331280000,1720173774695,209.71406521,0.00013283,2]
[331280001,1720173778260,154.9801725,0.00013283,2]
[331280002,1720173778701,412.5564662,0.00013283,2]
[331280022,1720173783170,2711.87592057,0.00013283,2]
[331280026,1720173783604,155.22457197,0.00013283,2]
[331280030,1720173791661,284.32402357,9.999e-05,2]
[331280031,1720173799287,293.20606944,9.999e-05,2]
[331280034,1720173814435,412.46097438,0.00013283,2]
[331280035,1720173814987,934.12399024,0.00013283,2]
[331280036,1720173817320,1404.76406432,0.00010959,2]
[331280037,1720173818007,427.95620224,0.00013283,2]
[331280039,1720173864609,24900.0,0.00013802,2]
[331280045,1720173869257,3000.0,0.00013802,2]
[331280046,1720173872511,150.5,0.00022892,62]
[331280047,1720173873452,150.5,0.00022882,62]
[331280048,1720173873557,151.56,0.00022872,62]
[331280049,1720173873633,150.5,0.00022892,62]
[331280050,1720173873693,150.5,0.00022892,62]
[331280051,1720173873763,150.5,0.00022892,62]
[331280052,1720173873940,150.5,0.00022882,62]
[331280053,1720173873983,150.5,0.00022882,62]
[331280054,1720173874025,150.5,0.00022882,62]
[331280055,1720173874229,150.5,0.00022872,62]
[331280056,1720173874370,152.67,0.00022872,62]
[331280057,1720173874882,296.0,0.00022872,62]
[331280058,1720173879655,431.4,0.00010959,2]
[331280059,1720173888477,182.81596833,9.999e-05,2]
[331280061,1720173890386,359.5,0.00010959,2]
[331280062,1720173893955,540.69285981,9.999e-05,2]
[331280063,1720173901030,299.58,0.00010959,2]
[331280065,1720173902703,182.61203593,9.999e-05,2]
[331280067,1720173911397,249.65,0.00010959,2]
[331280071,1720173922002,208.04,0.00010959,2]
[331280073,1720173933175,173.37,0.00010959,2]
[331280074,1720173936530,2629.16751375,0.00013283,2]
[331280077,1720173943717,866.86,0.00010959,2]
[331280079,1720173948220,155.46557519,0.00013283,2]
[331280080,1720173951037,412.5564662,0.00013283,2]
[331280081,1720173951610,1410.1556778,0.00013856,2]
[331280082,1720173951713,154.94486448,0.00013283,2]
[331280083,1720173951791,154.9967445,0.00013283,2]
[331280084,1720173952670,155.71659793,0.00013283,2]
[331280087,1720173957461,155.56243456,0.00013283,2]
[331280088,1720173958750,208.25082185,0.00013283,2]
[331280089,1720173976663,778.26130562,0.00013283,2]
[331280091,1720173993301,150.5,0.00021338,62]
[331280092,1720173993882,150.5,0.00021328,62]
[331280093,1720173994528,150.5,0.00021318,62]
[331280095,1720174010615,427.95620224,0.00013283,2]
[331280096,1720174013077,1587.116773,0.00013856,2]
[331280097,1720174018256,155.32775732,9.999e-05,2]
[331280100,1720174044048,232.98135407,9.999e-05,2]
[331280104,1720174054491,427.95620224,0.0001212,2]
[331280107,1720174077225,458.12484368,9.999e-05,2]
[331280108,1720174083455,412.5564662,0.0001212,2]
[331280110,1720174098100,250.0,0.00013856,2]
[331280112,1720174106933,458.12484368,9.999e-05,2]
[331280113,1720174110149,427.95620224,0.0001212,2]
[331280114,1720174115752,155.18389728,9.999e-05,2]
[331280121,1720174145637,458.12484368,0.0001212,2]
[331280130,1720174199043,427.95620224,0.0001212,2]
[331280131,1720174216480,302.36681471,0.0001212,2]
[331280132,1720174217394,176.32648848,0.0001212,2]
[331280133,1720174218677,4711.13030053,0.0001212,2]
[331280134,1720174232799,150.5,0.0001998,62]
[331280136,1720174233283,150.5,0.0001997,62]
[331280137,1720174233824,246.35,0.0001996,62]
[331280327,1720174239146,-911.72624745,0.00014132,2]
[331280329,1720174239156,-440.95847282,0.00014793,2]
[331280330,1720174239167,-500.0,0.00014793,2]
[331280331,1720174239178,-500.0,0.00014793,2]
[331280332,1720174239188,-300.0,0.00014793,2]
[331280333,1720174239199,-300.0,0.00014793,2]
[331280334,1720174239209,-10576.24668885,0.00014794,2]
[331280335,1720174239220,-6981.98564229,0.00014794,2]
[331280336,1720174239239,-154.86836189,0.00014794,2]
[331280337,1720174239250,-9615.23092531,0.00014998,2]
[331280338,1720174239261,-3078.85157566,0.00014999,2]
[331280339,1720174239271,-1500.0,0.00014999,2]
[331280340,1720174239282,-1487.5484496,0.00014999,2]
[331280341,1720174239292,-1489.24109091,0.00014999,2]
[331280342,1720174239303,-1434.5963251,0.00014999,2]
[331280343,1720174239315,-1453.42254231,0.00014999,2]
[331280344,1720174239326,-182.61203593,0.00014999,2]
[331280345,1720174239337,-2420.76089721,0.00015,2]
[331280346,1720174239347,-1066.73016154,0.00015,2]
[331280347,1720174239358,-1039.1649961,0.00015,2]
[331280348,1720174239368,-2883.56658262,0.00015,2]
[331280349,1720174239378,-304.3417626,0.00015,2]
[331280350,1720174239389,-265.89639156,0.00016,2]
[331280351,1720174239402,-265.89639156,0.00016,2]
[331280352,1720174239412,-265.89639156,0.00016,2]
[331280353,1720174239422,-3366.53801512,0.00016155,2]
[331280354,1720174239433,-158.80505934,0.00016243,2]
[331280355,1720174239443,-500.0,0.00016243,2]
[331280356,1720174239453,-500.0,0.00016243,2]
[331280357,1720174239463,-500.0,0.00016243,2]
[331280358,1720174239473,-500.0,0.00016243,2]
[331280359,1720174239484,-335.20228889,0.00016243,2]
[331280360,1720174239494,-248.66964502,0.00016243,2]
[331280361,1720174239505,-500.0,0.00016243,2]
[331280362,1720174239515,-500.0,0.00016243,2]
[331280363,1720174239525,-500.0,0.00016243,2]
[331280364,1720174239536,-500.0,0.00016243,2]
[331280365,1720174239547,-619.97740618,0.00016243,2]
[331280366,1720174239557,-500.0,0.00016243,2]
[331280367,1720174239568,-500.0,0.00016243,2]
[331280368,1720174239579,-500.0,0.00016243,2]
[331280369,1720174239603,-500.0,0.00016243,2]
[331280370,1720174239617,-500.0,0.00016243,2]
[331280371,1720174239647,-500.0,0.00016243,2]
[331280372,1720174239660,-500.0,0.00016243,2]
[331280373,1720174239670,-500.0,0.00016243,2]
[331280374,1720174239682,-500.0,0.00016243,2]
[331280375,1720174239693,-500.0,0.00016243,2]
[331280376,1720174239703,-500.0,0.00016243,2]
[331280377,1720174239715,-346.53999226,0.00016243,2]
[331280378,1720174239725,-16371.8641181,0.00016244,2]
[331280379,1720174239736,-32743.7282362,0.00016245,2]
[331280380,1720174239746,-57214.94712358,0.00016254,2]
[331280381,1720174239756,-42226.30858632,0.00016255,2]
[331280382,1720174239766,-30000.0,0.00016255,2]
[331280383,1720174239776,-34932.27430829,0.00016255,2]
[331280384,1720174239786,-420.0,0.00016272,2]
[331280385,1720174239796,-166.666666,0.00016438,2]
[331280386,1720174239807,-166.666666,0.00016823,2]
[331280387,1720174239818,-166.666666,0.00017208,2]
[331280388,1720174239828,-166.666666,0.00017592,2]
[331280389,1720174239838,-587.0,0.00017899,2]
[331280390,1720174239850,-166.666666,0.00017977,2]
[331280391,1720174239863,-256.53141225,0.00018,2]
[331280392,1720174239873,-166.666666,0.00018362,2]
[331280393,1720174239883,-197.13244658,0.00019,2]
[331280394,1720174239898,-250.0,0.00019041,2]
[331280395,1720174239908,-159.43194,0.00019178,2]
[331280396,1720174239918,-159.462766,0.00019178,2]
[331280397,1720174239930,-440.6010737,0.00019178,4]
[331280399,1720174239940,-159.465965,0.00019178,2]
[331280401,1720174239951,-811.0,0.00019689,2]
[331280403,1720174239960,-16371.8641181,0.0001999,2]
[331280404,1720174239970,-1116.9418809,0.0002,2]
[331280406,1720174239980,-1724.35538883,0.0002,2]
[331280408,1720174239991,-2244.84007704,0.0002,2]
[331280410,1720174240000,-169.50434797,0.0002,2]
[331280412,1720174240010,-435.0,0.0002,2]
[331280414,1720174240021,-154.86836189,0.0002,2]
[331280415,1720174240031,-293.1691109,0.0002,2]
[331280417,1720174240041,-3366.53801508,0.0002004,2]
[331280419,1720174240051,-1587.116773,0.00020783,2]
[331280421,1720174240061,-192.306567,0.00021096,2]
[331280423,1720174240072,-559.33035,0.00021096,2]
[331280425,1720174240082,-501.91198949,0.000212,2]
[331280427,1720174240092,-276.42306753,0.00021917,2]
[331280428,1720174240103,-879.23230837,0.0002217,2]
[331280430,1720174240113,-160.09733992,0.00022289,2]
[331280431,1720174240124,-191.03923068,0.00022912,2]
[331280432,1720174240135,-8009.49062548,0.00022912,2]
[331280433,1720174240150,-154.86836189,0.00022912,2]
[331280434,1720174240161,-181.84215111,0.00022912,2]
[331280435,1720174240171,-225.53942994,0.00022912,2]
[331280436,1720174240181,-763.20815407,0.00022912,2]
[331280437,1720174240191,-2699.93975309,0.00022942,2]
[331280438,1720174240201,-6513.61142707,0.00023,2]
[331280439,1720174240334,-200.0,0.00023,2]
[331280440,1720174240345,-1088.73454044,0.00023176,2]
[331280441,1720174240355,-156.25095608,0.00023202,2]
[331280442,1720174240365,-1634.75488436,0.00023453,2]
[331280443,1720174240375,-3366.53801508,0.00023924,2]
[331280444,1720174240385,-532.01362023,0.00023966,2]
[331280445,1720174240401,-509.91756708,0.00023966,2]
[331280446,1720174240410,-726.09741082,0.00023966,2]
[331280447,1720174240420,-643.43672702,0.00024335,2]
[331280448,1720174240429,-156.8711892,0.00024481,2]
[331280449,1720174240442,-200.0,0.00024658,15]
[331280450,1720174240451,-380.0,0.00024658,2]
[331280451,1720174240461,-158.66408624,0.00024749,2]
[331280452,1720174240471,-151.57276841,0.00024844,2]
[331280453,1720174240481,-189.04078712,0.00025,2]
[331280454,1720174240492,-500.0,0.00025,30]